Workbook

Sheet MainSheet
B2: 0 | D2: 0 | F2: 0 | H2: 0 | J2: 0
C4: Venue | D4: Warrnambool | G4: Race | H4: 6 | I4: Class | J4: Open | L4: Value | M4: 40000 | N4: Distance | O4: 1300m | T4: Race Time | V4: 01:30:00 | W4: - | X4: 2 | Y4: Hours
B7: Form | C7: No | D7: Runner | G7: Trainer | I7: Jockey | K7: Weight | L7: Barrier | M7: Rated | N7: Rating | S7: Rated Price
B9: 411210 | C9: 1 | D9: Haddle McDaddle | G9: P G Payne | I9: Michelle Payne | K9: 61 | L9: 14 | M9: =IF(C9="","",IF(N9="","",IF(RANK(N9,$N$9:$N$32)<6,RANK(N9,$N$9:$N$32),""))) ->  | N9: 10.57861642 | O9: =IF(M9="","",N9) ->  | P9: =IF(N9="","",N9) -> 10.57861642 | Q9: =IF(O9="","",O9/$O$34*100) ->  | R9: =IF(P9="","",P9/$P$34*100) -> 3.746758331 | S9: =IF(N9="","",IF(Q9<>"",100/Q9*1.15,100/R9+1.15)) -> 27.83973848
B10: 714152 | C10: 2 | D10: Bohika | G10: D K Weir | I10: J D Hill | K10: 59.5 | L10: 3 | M10: =IF(C10="","",IF(N10="","",IF(RANK(N10,$N$9:$N$32)<6,RANK(N10,$N$9:$N$32),""))) -> 2 | N10: 37.4632011 | O10: =IF(M10="","",N10) -> 37.4632011 | P10: =IF(N10="","",N10) -> 37.4632011 | Q10: =IF(O10="","",O10/$O$34*100) -> 19.50085035 | R10: =IF(P10="","",P10/$P$34*100) -> 13.26880144 | S10: =IF(N10="","",IF(Q10<>"",100/Q10*1.15,100/R10+1.15)) -> 5.897178736 | X10: =IF(T9<>"","Win","") ->  | Y10: =IF(T9<>"","Place","") -> 
B11: 31691 | C11: 3 | D11: Glaneuse | G11: M O'Leary | I11: L J Meech | K11: 58.5 | L11: 15 | M11: =IF(C11="","",IF(N11="","",IF(RANK(N11,$N$9:$N$32)<6,RANK(N11,$N$9:$N$32),""))) -> 5 | N11: 21.41848367 | O11: =IF(M11="","",N11) -> 21.41848367 | P11: =IF(N11="","",N11) -> 21.41848367 | Q11: =IF(O11="","",O11/$O$34*100) -> 11.14903779 | R11: =IF(P11="","",P11/$P$34*100) -> 7.586047075 | S11: =IF(N11="","",IF(Q11<>"",100/Q11*1.15,100/R11+1.15)) -> 10.31479148 | T11: =IF($T$9<>"","1st","") -> 
B12: 710664 | C12: 4 | D12: By The Way | G12: M W Lewis | I12: J Fry | K12: 56.5 | L12: 11 | M12: 1 | N12: 78.22371909 | O12: 78.22371909 | P12: 78.22371909 | Q12: 40.71806452 | R12: 27.70545406 | S12: 2.824299272 | T12: =IF($T$9<>"","2nd","") -> 
B13: 27050 | C13: 5 | D13: Arch Symbol | G13: B & S Wilde | I13: R Maloney | K13: 56 | L13: 5 | N13: 2.762228301 | P13: 2.762228301 | R13: 0.978332278 | S13: 103.364761 | T13: =IF($T$9<>"","3rd","") -> 
B14: 56650 | C14: 6 | D14: Bolle | G14: Ms B E Marshman | I14: C Puls | K14: 55 | L14: 10 | N14: 8.503619341 | P14: 8.503619341 | R14: 3.011831165 | S14: 34.35239234
B15: 542755 | C15: 7 | D15: Flying Tessie | G15: M Williams | I15: D Yendall | K15: 55 | L15: 2 | N15: 7.081452771 | P15: 7.081452771 | R15: 2.508124987 | S15: 41.02042134
B16: 825102 | C16: 8 | D16: Light Tan | G16: M O'Leary | I16: J Benbow | K16: 55 | L16: 16 | N16: 15.68347985 | P16: 15.68347985 | R16: 5.554810427 | S16: 19.15241454
B17: 437606 | C17: 9 | D17: Ortayga | G17: C J Cassar | I17: C A Robertson | K17: 55 | L17: 4 | N17: 14.65616394 | P17: 14.65616394 | R17: 5.190953351 | S17: 20.41428408
B18: 184741 | C18: 10 | D18: Fasmoss | G18: B & S Wilde | I18: D Stackhouse | K18: 54 | L18: 13 | M18: 3 | N18: 31.20307042 | O18: 31.20307042 | P18: 31.20307042 | Q18: 16.24224275 | R18: 11.05157418 | S18: 7.080302995
B19: 454228 | C19: 11 | D19: Nicastro | G19: J McLean | I19: N Beriman | K19: 54 | L19: 1 | N19: 16.82363822 | P19: 16.82363822 | R19: 5.958634301 | S19: 17.93236907
B20: 819308 | C20: 12 | D20: Yokozuna | G20: A Purcell | I20: J Lyon | K20: 54 | L20: 9 | N20: 6.098413791 | P20: 6.098413791 | R20: 2.159950013 | S20: 47.44736771
B21: 335007 | C21: 13 | D21: Kudeta | G21: H Conners | I21: L Coffey | K21: 53.5 | L21: 12 | N21: 2.202372789 | P21: 2.202372789 | R21: 0.7800413841 | S21: 129.3483264
B22: 236410 | C22: 14 | D22: Mr Paparazzi | G22: Ms K Durden | I22: K Myers | K22: 53 | L22: 8 | N22: 3.048799472 | P22: 3.048799472 | R22: 1.079830705 | S22: 93.75710921
B23: 221511 | C23: 15 | D23: Torrefy | G23: Fran Houlahan & Brian Johnstone | I23: D Smith | K23: 53 | L23: 6 | M23: 4 | N23: 23.80212825 | O23: 23.80212825 | P23: 23.80212825 | Q23: 12.38980459 | R23: 8.430291712 | S23: 9.281825162 | T23: =D4 -> Warrnambool | V23: =G4 -> Race | W23: =H4 -> 6 | X23: Rated Price
B24: 187673 | C24: 16 | D24: Magic Zulu | G24: Ms C Kennie | I24: J Todd | K24: 53 | L24: 7 | N24: 2.791118276 | P24: 2.791118276 | R24: 0.9885645948 | S24: 102.3067686 | T24: ="1st" -> 1st | U24: =INDEX($C$9:$C$32,MATCH(1,$M$9:$M$32,0),1) -> 4 | V24: =INDEX($D$9:$D$32,MATCH(1,$M$9:$M$32,0),1) -> By The Way | X24: =INDEX($S$9:$S$32,MATCH(1,$M$9:$M$32,0),1) -> 2.824299272 | Y24: =IF($T$9="","",IF(ISNA(VLOOKUP(V24,$V$11:$X$13,2,FALSE)),"",VLOOKUP(V24,$V$11:$X$13,3,FALSE))) -> 
T25: ="2nd" -> 2nd | U25: =INDEX($C$9:$C$32,MATCH(2,$M$9:$M$32,0),1) -> 2 | V25: =INDEX($D$9:$D$32,MATCH(2,$M$9:$M$32,0),1) -> Bohika | X25: =INDEX($S$9:$S$32,MATCH(2,$M$9:$M$32,0),1) -> 5.897178736 | Y25: =IF($T$9="","",IF(ISNA(VLOOKUP(V25,$V$11:$X$13,2,FALSE)),"",VLOOKUP(V25,$V$11:$X$13,3,FALSE))) -> 
T26: ="3rd" -> 3rd | U26: =INDEX($C$9:$C$32,MATCH(3,$M$9:$M$32,0),1) -> 10 | V26: =INDEX($D$9:$D$32,MATCH(3,$M$9:$M$32,0),1) -> Fasmoss | X26: =INDEX($S$9:$S$32,MATCH(3,$M$9:$M$32,0),1) -> 7.080302995 | Y26: =IF($T$9="","",IF(ISNA(VLOOKUP(V26,$V$11:$X$13,2,FALSE)),"",VLOOKUP(V26,$V$11:$X$13,3,FALSE))) -> 
T27: ="4th" -> 4th | U27: =INDEX($C$9:$C$32,MATCH(4,$M$9:$M$32,0),1) -> 15 | V27: =INDEX($D$9:$D$32,MATCH(4,$M$9:$M$32,0),1) -> Torrefy | X27: =INDEX($S$9:$S$32,MATCH(4,$M$9:$M$32,0),1) -> 9.281825162 | Y27: =IF($T$9="","",IF(ISNA(VLOOKUP(V27,$V$11:$X$13,2,FALSE)),"",VLOOKUP(V27,$V$11:$X$13,3,FALSE))) -> 
U29: Bets
U30: =T23 -> Warrnambool | W30: =V23 -> Race | X30: =W23 -> 6
U31: =U24&". "&V24 -> 4. By The Way | W31: =X24 -> 2.824299272
U32: =U25&". "&V25 -> 2. Bohika | W32: =X25 -> 5.897178736
O34: =SUM(O9:O33) -> 192.1106025 | P34: =SUM(P9:P33) -> 282.3405057
B56: =IF(C27="","",C27) ->  | E56: =IF(M27="","",M27) ->  | F56: =IF($E56=1,C56,"") ->  | G56: =IF($E56=2,C56,"") ->  | H56: =IF($E56=3,C56,"") ->  | I56: =IF($E56=4,C56,"") -> 
